bitfinex-derivatives/quotes_SOLF0:USTF0_20250911
["timestamp","ask_amount","ask_price","bid_price","bid_amount"]
[1757582763466,0.0314742,225.08,225.07,118.06]
[1757582764872,0.0314742,225.08,225.07,118.02]
[1757582770973,0.0314742,225.08,225.07,117.54]
[1757582771173,0.0314742,225.08,225.07,117.46]
[1757582771878,0.0314742,225.08,225.05,3.6000292]
[1757582772178,0.0314742,225.08,225.06,98.36]
[1757582772376,0.0314742,225.08,225.07,98.36]
[1757582773275,0.0314742,225.08,225.04,3.6000292]
[1757582773474,7.59,225.07,224.99,3.6000292]
[1757582773672,7.59,225.07,224.93,7.31359875]
[1757582773673,7.59,225.07,224.97,3.6000292]
[1757582773870,0.0314742,225.08,224.97,117.34]
[1757582774072,6.88709241,225.13,224.97,117.34]
[1757582774275,0.03275703,225.05,224.97,117.34]
[1757582774774,7.59,225.04,224.96,3.6000292]
[1757582774981,7.59,225.04,224.97,80.3]
[1757582775178,7.59,225.04,224.95,3.6000292]
[1757582775179,7.59,225.04,224.98,80.32]
[1757582775579,0.03000508,225.03,224.98,80.32]
[1757582775983,7.62000508,225.03,224.98,80.32]
[1757582776277,7.59,225.02,224.94,3.6000292]
[1757582776475,7.59,225.02,224.9,298.42]
[1757582777283,0.03110527,224.98,224.9,298.42]
[1757582777580,7.59,224.99,224.9,298.42]
[1757582777981,0.03212431,224.96,224.9,298.42]
[1757582779677,0.03212431,224.96,224.91,117.12]
[1757582780084,7.59,224.95,224.84,3.6000292]
[1757582780382,7.59,224.95,224.85,70.82]
[1757582780776,0.0294486,224.92,224.85,70.82]
[1757582781174,0.0294486,224.92,224.77,298.52]
[1757582781175,0.0294486,224.92,224.8,3.6000292]
[1757582781381,0.0294486,224.92,224.81,117.04]
[1757582781678,12.93,224.91,224.81,117.04]
[1757582781877,0.03261496,224.89,224.83,3.6000292]
[1757582782078,0.03261496,224.89,224.82,3.6000292]
[1757582782478,0.03261496,224.89,224.83,3.6000292]
[1757582782979,0.03261496,224.89,224.85,3.6000292]
[1757582783683,0.03261496,224.89,224.86,3.6000292]
[1757582783983,0.03261496,224.89,224.87,116.98]
[1757582784175,0.03261496,224.89,224.87,117.42]
[1757582785778,0.03261496,224.89,224.88,3.6000292]
[1757582785985,0.03261496,224.89,224.87,116.98]
[1757582786880,0.03261496,224.89,224.88,116.82]
[1757582787280,0.03261496,224.89,224.84,3.6000292]
[1757582787485,0.03261496,224.89,224.88,116.78]
[1757582789182,0.03261496,224.89,224.88,116.86]
[1757582789877,0.03261496,224.89,224.82,3.6000292]
[1757582790079,0.03261496,224.89,224.83,120.3800292]
[1757582790583,0.03261496,224.89,224.84,3.6000292]
[1757582792188,0.03261496,224.89,224.85,3.6000292]
[1757582793691,0.03261496,224.89,224.84,3.6000292]
[1757582794087,0.03261496,224.89,224.83,120.3800292]
[1757582794287,0.03261496,224.89,224.86,5.22799822]
[1757582794790,0.03261496,224.89,224.87,3.6000292]
[1757582794988,0.03261496,224.89,224.88,116.62]
[1757582795188,0.03261496,224.89,224.88,118.24796902]
[1757582795384,0.03261496,224.89,224.88,121.84799822]
[1757582796392,0.03261496,224.89,224.88,120.2200292]
[1757582798097,0.03261496,224.89,224.88,116.62]
[1757582798597,0.03261496,224.89,224.88,116.38]
[1757582799999,0.03261496,224.89,224.88,119.9800292]
[1757582801800,0.03261496,224.89,224.88,116.38]
[1757582802806,7.41261496,224.89,224.88,116.38]
[1757582804498,0.03261496,224.89,224.88,116.38]
[1757582805604,0.03261496,224.89,224.86,0.02954551]
[1757582805804,0.03261496,224.89,224.87,116.58]
[1757582807610,0.03261496,224.89,224.86,0.02954551]
[1757582807611,7.38,224.87,224.86,0.02954551]
[1757582807911,7.38,224.87,224.77,120.20318545]
[1757582808106,1.62796902,224.83,224.77,116.56]
[1757582808909,0.03104443,224.82,224.77,116.56]
[1757582809111,7.38,224.81,224.77,116.56]
[1757582810604,0.03104443,224.82,224.77,116.56]
[1757582810914,7.38,224.81,224.77,116.56]
[1757582811108,0.03104443,224.82,224.77,116.56]
[1757582812419,7.38,224.81,224.71,116.4]
[1757582812718,6.76,224.9,224.62,120.14318545]
[1757582812719,7.38,224.76,224.62,120.14318545]
[1757582813212,7.38,224.76,224.62,116.5]
[1757582813615,0.02808989,224.73,224.62,116.5]
[1757582814118,0.02808989,224.73,224.64,3.64318545]
[1757582814309,0.02808989,224.73,224.63,3.64318545]
[1757582817113,0.02808989,224.73,224.64,3.64318545]
[1757582817719,0.02808989,224.73,224.63,3.64318545]
[1757582818219,0.02808989,224.73,224.62,120.14318545]
[1757582820124,7.39808989,224.73,224.65,116.93286961]
[1757582820318,0.02808989,224.73,224.65,0.77286961]
[1757582820523,7.37,224.7,224.58,3.64318545]
[1757582820723,7.37,224.7,224.63,0.77455541]
[1757582821223,0.03066078,224.69,224.57,68.86318545]
[1757582821418,0.03066078,224.69,224.63,0.77464162]
[1757582821624,0.03066078,224.69,224.57,68.86318545]
[1757582822025,0.03066078,224.69,224.63,0.77462437]
[1757582822224,0.03066078,224.69,224.59,3.64318545]
[1757582822722,0.03066078,224.69,224.63,0.77453817]
[1757582823823,13.41291154,224.85,224.63,0.77453817]
[1757582823824,59.85730687,224.99,224.64,0.44]
[1757582824021,7.37,224.92,224.74,3.64318545]
[1757582824216,7.37,224.92,224.75,1.52]
[1757582824421,7.37,224.92,224.75,5.16318545]
[1757582824629,13.25,224.91,224.79,3.64318545]
[1757582825119,0.02851235,224.87,224.8,82.1]
[1757582825614,0.02851235,224.87,224.8,85.74318545]
[1757582826014,0.02851235,224.87,224.8,3.64318545]
[1757582826223,0.02851235,224.87,224.79,3.64318545]
[1757582826525,0.02851235,224.87,224.8,86.94]
[1757582826721,0.02851235,224.87,224.79,3.64318545]
[1757582826922,0.02851235,224.87,224.8,181.08]
[1757582827423,0.02851235,224.87,224.8,119.08]
[1757582828425,0.02851235,224.87,224.79,3.64318545]
[1757582828620,0.02851235,224.87,224.76,3.64318545]
[1757582828827,0.02851235,224.87,224.74,3.64318545]
[1757582829126,7.37,224.88,224.75,118.88]
[1757582829425,0.02921128,224.83,224.75,122.52318545]
[1757582829625,0.02921128,224.83,224.76,3.64318545]
[1757582830727,0.02921128,224.83,224.77,118.8]
[1757582831026,0.02921128,224.83,224.76,3.64318545]
[1757582831326,0.02921128,224.83,224.77,118.66]
[1757582831727,13.25,224.91,224.79,3.64318545]
[1757582832625,13.25,224.91,224.8,3.64318545]
[1757582833326,13.25,224.91,224.79,3.64318545]
[1757582833728,0.03046244,224.87,224.79,3.64318545]
[1757582834032,0.03046244,224.87,224.83,0.03165367]
[1757582834222,0.03046244,224.87,224.84,118.52]
[1757582834423,0.03046244,224.87,224.85,118.44]
[1757582836124,7.37,224.86,224.83,0.03165367]
[1757582836426,7.37,224.86,224.83,110.57165367]
[1757582836624,0.03046244,224.87,224.83,0.03165367]
[1757582836820,7.37,224.86,224.83,0.03165367]
[1757582837028,0.03046244,224.87,224.83,0.03165367]
[1757582837728,7.37,224.86,224.83,0.03165367]
[1757582838120,0.03046244,224.87,224.83,0.03165367]
[1757582846137,7.37,224.86,224.84,72.36]
[1757582846337,7.37,224.86,224.83,0.03165367]
[1757582846539,7.37,224.86,224.84,117.54]
[1757582848436,0.03046244,224.87,224.84,117.54]
[1757582848738,7.06,224.86,224.84,117.36]
[1757582850744,7.06,224.86,224.83,0.03165367]
[1757582851243,7.06,224.86,224.84,60.72]
[1757582851436,0.03046244,224.87,224.84,60.72]
[1757582855347,13.25,224.91,224.84,68.03359875]
[1757582855548,13.25,224.91,224.88,4.84739194]
[1757582855746,13.25,224.91,224.88,316.77314806]
[1757582856048,13.25,224.91,224.88,303.60739194]
[1757582856546,13.25,224.91,224.89,117.18]
[1757582857237,13.25,224.91,224.9,3.63236054]
[1757582857934,13.25,224.91,224.9,117.02]
[1757582858138,13.25,224.91,224.9,120.6520453]
[1757582858340,13.25,224.91,224.9,182.6520453]
[1757582859747,13.25,224.91,224.9,3.6320453]
[1757582860043,13.25,224.91,224.9,120.6320453]
[1757582860944,13.25,224.91,224.9,3.6320453]
[1757582861150,13.25,224.91,224.9,120.4320453]
[1757582862548,13.25,224.91,224.9,120.8720453]
[1757582862750,13.25,224.91,224.9,179.24]
[1757582863247,13.25,224.91,224.9,184.08739194]
[1757582863940,13.25,224.91,224.9,179.24]
[1757582864147,8.25,224.91,224.9,179.24]
[1757582865657,3.25,224.91,224.9,179.24]
[1757582866758,0.03047899,224.93,224.9,179.24]
[1757582866955,0.03047899,224.93,224.92,7.27045461]
[1757582867356,0.03047899,224.93,224.9,130.16]
[1757582867557,7.06,225.04,224.97,0.46952101]
[1757582867755,7.06,225.16,224.99,3.63657424]
[1757582867955,7.06,225.16,225.0,7.9]
[1757582868860,7.06,225.16,225.06,0.03285993]
[1757582869057,6.90892867,225.17,225.07,15.4]
[1757582869259,7.06,225.16,225.07,15.4]
[1757582869557,6.90892867,225.17,225.07,15.4]
[1757582869857,14.8,225.16,225.07,15.4]
[1757582870061,7.06,225.15,225.07,15.4]
[1757582870256,14.8,225.16,225.07,15.4]
[1757582870450,6.90892867,225.11,225.06,0.03285993]
[1757582870655,7.06,225.1,225.06,4.17285993]
[1757582871053,7.06,225.1,224.97,3.63657424]
[1757582871358,6.90892867,225.05,224.96,65.88]
[1757582871659,7.06,225.04,224.97,116.32]
[1757582871860,6.90892867,225.06,224.96,116.3]
[1757582872061,7.06,225.05,224.92,3.63657424]
[1757582872258,7.06,225.05,224.99,0.03367715]
[1757582873659,0.44,225.04,224.99,0.00367715]
[1757582873864,7.06,225.03,224.99,0.00367715]
[1757582874558,0.03091376,225.04,224.91,3.63657424]
[1757582874559,0.44,225.02,224.91,3.63657424]
[1757582874756,7.06,225.03,224.92,116.08]
[1757582874960,7.06,225.05,224.93,116.08]
[1757582875461,7.06,225.05,224.92,116.08]
[1757582876262,6.90892867,225.06,224.92,116.08]
[1757582876464,7.06,225.05,224.92,116.08]
[1757582876663,6.90892867,225.06,224.92,116.08]
[1757582876864,7.06,225.05,224.91,115.96]
[1757582877064,7.06,225.05,224.89,3.63657424]
[1757582877266,6.93,225.05,224.9,115.96]
[1757582877571,6.93,225.05,224.9,115.94]
[1757582877959,6.90892867,225.06,224.9,115.94]
[1757582878366,6.93,225.05,224.9,115.94]
[1757582879772,6.90892867,225.06,224.9,115.94]
[1757582880470,6.93,225.05,224.9,115.94]
[1757582881072,6.90892867,225.06,224.9,115.94]
[1757582881275,6.93,225.05,224.9,115.94]
[1757582882269,6.90892867,225.06,224.9,115.94]
[1757582883280,6.93,225.05,224.9,115.94]
[1757582883576,6.90892867,225.06,224.9,115.94]
[1757582883764,6.93,225.05,224.9,115.94]
[1757582883967,6.90892867,225.06,224.9,115.94]
[1757582884168,6.93,225.05,224.9,115.94]
[1757582884976,6.90892867,225.06,224.9,115.94]
[1757582885577,6.93,225.05,224.91,0.05]
[1757582885980,6.93,225.05,224.91,56.17]
[1757582886184,6.90892867,225.06,224.91,56.17]
[1757582886384,6.93,225.05,224.91,56.17]
[1757582886582,6.90892867,225.06,224.91,56.17]
[1757582887179,6.93,225.05,224.91,0.05]
[1757582887576,6.93,224.99,224.87,3.63657424]
[1757582887776,6.93,224.99,224.83,3.68657424]
[1757582888084,6.93,224.99,224.83,0.05]
[1757582888383,6.93,224.95,224.83,0.05]
[1757582888585,0.03050224,224.93,224.84,0.05]
[1757582888785,6.93,224.92,224.84,115.37]
[1757582889082,6.93,224.92,224.86,0.03076145]
[1757582898480,2.54564282,224.9,224.86,0.03076145]
[1757582898680,6.93,224.89,224.86,0.03076145]
[1757582899287,2.54564282,224.9,224.86,0.03076145]
[1757582899691,6.93,224.89,224.86,0.03076145]
[1757582899990,2.54564282,224.9,224.86,0.03076145]
[1757582900383,6.93,224.89,224.86,0.03076145]
[1757582900986,2.54564282,224.9,224.86,0.03076145]
[1757582901384,2.54564282,224.9,224.76,0.05]
[1757582901385,6.93,224.89,224.76,0.05]
[1757582902591,0.0307253,224.85,224.76,0.05]
[1757582906494,0.0307253,224.85,224.76,115.31]
[1757582906892,0.0307253,224.85,224.76,0.05]
[1757582907099,0.0307253,224.85,224.76,115.31]
[1757582909500,0.0307253,224.85,224.76,115.31]
[1757582909700,0.0307253,224.85,224.77,0.06]
[1757582910603,7.36,224.84,224.77,0.06]
[1757582912301,1.62954752,224.83,224.77,0.06]
[1757582913203,7.36,224.82,224.75,298.64]
[1757582918112,7.36,224.84,224.76,0.06]
[1757582925013,1.62954752,224.83,224.76,0.06]
[1757582925416,7.36,224.84,224.76,0.06]
[1757582930618,7.36,224.84,224.77,115.18]
[1757582934224,7.36,224.78,224.72,3.72517314]
[1757582934422,7.36,224.78,224.72,0.06]
[1757582934824,0.03001585,224.77,224.72,0.06]
[1757582935016,7.36,224.76,224.72,0.06]
[1757582937118,0.03001585,224.77,224.71,119.5990654]
[1757582937119,0.03001585,224.77,224.71,4.4390654]
[1757582937319,1.62954752,224.76,224.7,115.12]
[1757582937624,7.19,224.75,224.7,115.12]
[1757582937824,1.62954752,224.76,224.7,115.12]
[1757582938526,0.03001585,224.77,224.7,115.12]
[1757582938527,8.84956337,224.77,224.7,115.12]
[1757582938724,8.84956337,224.77,224.7,115.18]
[1757582939116,8.84956337,224.77,224.7,0.06]
[1757582939319,8.84956337,224.77,224.68,0.77433998]
[1757582939320,1.62954752,224.74,224.68,0.77433998]
[1757582939526,7.19,224.73,224.68,0.77433998]
[1757582939719,1.62954752,224.74,224.68,0.77433998]
[1757582940326,7.19,224.73,224.66,115.18]
[1757582940715,7.19,224.7,224.66,115.18]
[1757582941520,7.19,224.7,224.66,115.16]
[1757582942722,1.62954752,224.71,224.65,298.86]
[1757582942926,8.81954752,224.71,224.65,413.96]
[1757582943329,8.81954752,224.71,224.65,115.1]
[1757582947226,8.81954752,224.71,224.63,115.14]
[1757582948528,8.81954752,224.71,224.63,0.06]
[1757582948728,7.19,224.7,224.63,0.06]
[1757582952128,7.19,224.67,224.6,4.49981476]
[1757582952334,7.19,224.67,224.6,75.05981476]
[1757582952832,0.0291312,224.66,224.6,75.05981476]
[1757582953529,0.0291312,224.66,224.6,71.39464162]
[1757582953734,0.0291312,224.66,224.6,0.83464162]
[1757582953931,0.0291312,224.66,224.6,115.89464162]
[1757582954135,0.0291312,224.66,224.6,0.83464162]
[1757582954737,0.0291312,224.66,224.61,0.06]
[1757582955336,0.0291312,224.66,224.6,0.77464162]
[1757582956231,0.0291312,224.66,224.61,0.06]
[1757582956431,0.0291312,224.66,224.6,0.77464162]
[1757582956734,0.0291312,224.66,224.61,0.06]
[1757582956938,0.0291312,224.66,224.6,0.77464162]
[1757582957236,0.0291312,224.66,224.61,0.06]
[1757582957436,0.0291312,224.66,224.6,0.77464162]
[1757582958028,0.0291312,224.66,224.61,0.06]
[1757582958227,0.0291312,224.66,224.6,0.77464162]
[1757582959529,0.0291312,224.66,224.61,0.06]
[1757582959837,0.0291312,224.66,224.6,0.77464162]
[1757582960239,0.0291312,224.66,224.61,0.06]
[1757582960739,0.0291312,224.66,224.6,0.77464162]
[1757582961034,0.0291312,224.66,224.61,0.06]
[1757582961736,0.0291312,224.66,224.6,0.77464162]
[1757582961937,0.0291312,224.66,224.61,0.06]
[1757582962132,0.0291312,224.66,224.6,0.77464162]
[1757582962933,0.0291312,224.66,224.61,0.06]
[1757582963241,0.0291312,224.66,224.6,0.77464162]
[1757582963637,0.0291312,224.66,224.61,0.06]
[1757582964342,0.0291312,224.66,224.6,0.77464162]
[1757582964644,0.0291312,224.66,224.6,0.83464162]
[1757582968039,0.0291312,224.66,224.61,0.07]
[1757582969943,0.0291312,224.66,224.62,0.07]
[1757582970139,0.0291312,224.66,224.61,3.66517314]
[1757582970444,0.0291312,224.66,224.62,0.07]
[1757582970646,0.0291312,224.66,224.61,3.66517314]
[1757582970844,0.0291312,224.66,224.62,0.07]
[1757582971040,0.0291312,224.66,224.61,3.66517314]
[1757582971642,0.0291312,224.66,224.62,0.07]
[1757582971943,0.0291312,224.66,224.61,3.66517314]
[1757582972444,0.0291312,224.66,224.63,0.07]
[1757582972644,0.0291312,224.66,224.65,0.07]
[1757582975135,7.19,224.65,224.61,114.93]
[1757582975335,7.19,224.65,224.61,118.59517314]
[1757582977041,7.19,224.65,224.61,118.55517314]
[1757582977242,7.19,224.65,224.62,3.73517314]
[1757582978946,0.0291312,224.66,224.62,3.66517314]
[1757582979146,7.19,224.65,224.61,3.66517314]
[1757582979340,7.19,224.65,224.61,3.73517314]
[1757582979746,0.0291312,224.66,224.61,3.73517314]
[1757582979947,7.19,224.65,224.61,3.73517314]
[1757582980343,7.19,224.65,224.62,3.66517314]
[1757582980544,0.0291312,224.66,224.62,3.66517314]
[1757582980942,7.19,224.65,224.62,3.66517314]
[1757582981342,0.0291312,224.66,224.62,3.66517314]
[1757582981840,7.19,224.65,224.62,3.66517314]
[1757582982343,7.19,224.65,224.63,3.66517314]
[1757582982745,0.0291312,224.66,224.63,3.66517314]
[1757582983244,7.19,224.65,224.63,3.66517314]
[1757582983445,0.0291312,224.66,224.63,3.66517314]
[1757582983642,7.19,224.65,224.63,3.66517314]
[1757582984347,0.0291312,224.66,224.63,3.66517314]
[1757582984841,7.19,224.65,224.63,3.66517314]
[1757582985841,0.0291312,224.66,224.63,3.66517314]
[1757582986247,7.19,224.65,224.63,3.66517314]
[1757582986944,0.0291312,224.66,224.62,3.66517314]
[1757582987138,7.19,224.65,224.61,3.66517314]
[1757582987848,0.0291312,224.66,224.61,3.66517314]
[1757582988150,7.19,224.65,224.61,3.66517314]
[1757582988343,0.0291312,224.66,224.61,3.66517314]
[1757582988543,7.19,224.65,224.61,3.66517314]
[1757582988740,0.0291312,224.66,224.61,3.66517314]
[1757582989345,7.19,224.65,224.61,3.66517314]
[1757582989647,0.0291312,224.66,224.61,3.66517314]
[1757582990149,7.19,224.65,224.61,3.66517314]
[1757582990646,0.0291312,224.66,224.61,3.66517314]
[1757582990947,7.19,224.65,224.61,3.66517314]
[1757582991154,0.0291312,224.66,224.61,3.66517314]
[1757582991350,0.0291312,224.66,224.6,3.66517314]
[1757582991546,7.19,224.65,224.6,3.66517314]
[1757582991751,0.0291312,224.66,224.6,3.66517314]
[1757582992049,7.19,224.65,224.6,3.66517314]
[1757582992447,0.0291312,224.66,224.6,3.66517314]
[1757582993049,7.19,224.65,224.6,3.66517314]
[1757582993445,0.0291312,224.66,224.6,3.66517314]
[1757582993848,7.19,224.65,224.6,3.66517314]
[1757582994042,7.19,224.65,224.59,3.66517314]
[1757582999051,6.9,224.65,224.6,3.66517314]
[1757582999752,0.0291312,224.66,224.6,3.66517314]
[1757583000147,0.0291312,224.66,224.6,3.73517314]
[1757583000350,6.9291312,224.66,224.62,0.07]
[1757583000554,6.9291312,224.66,224.61,3.66517314]
[1757583000755,0.0291312,224.66,224.62,0.07]
[1757583000953,6.9,224.65,224.62,0.07]
[1757583001655,0.0291312,224.66,224.62,0.07]
[1757583001956,6.9,224.65,224.6,3.66517314]
[1757583002147,0.0291312,224.66,224.6,3.66517314]
[1757583002348,2.54897129,224.62,224.59,3.66517314]
[1757583002556,2.54897129,224.62,224.56,5.69350213]
[1757583002557,6.9,224.61,224.53,3.66517314]
[1757583003256,0.03305268,224.59,224.52,3.73517314]
[1757583004159,0.03305268,224.59,224.55,0.07]
[1757583004558,0.03305268,224.59,224.54,3.66517314]
[1757583004857,6.9,224.58,224.51,4.5099786]
[1757583005155,6.9,224.58,224.52,3.66517314]
[1757583005355,0.03305268,224.59,224.53,3.66517314]
[1757583005657,0.03305268,224.59,224.53,0.07]
[1757583008057,6.9,224.58,224.51,0.77480546]
[1757583009464,6.9,224.58,224.5,0.07]
[1757583011465,6.9,224.58,224.47,0.77507294]
[1757583011660,6.9,224.56,224.47,0.77507294]
[1757583011964,6.9,224.56,224.46,299.13]
[1757583012165,2.54897129,224.57,224.46,299.13]
[1757583012365,6.9,224.53,224.46,299.13]
[1757583012566,2.54897129,224.53,224.46,299.06]
[1757583012758,6.9,224.52,224.44,3.66517314]
[1757583012961,6.9,224.52,224.43,3.73517314]
[1757583013465,6.9,224.52,224.43,0.07]
[1757583014460,6.9,224.52,224.39,3.73517314]
[1757583014664,6.9,224.52,224.39,0.07]
[1757583015061,0.03291766,224.48,224.4,0.07]
[1757583019374,6.93291766,224.48,224.4,0.07]
[1757583019571,6.93291766,224.48,224.38,0.77536652]
[1757583020078,6.93291766,224.48,224.38,0.84536652]
[1757583020779,6.93291766,224.48,224.39,0.07]
[1757583034388,7.15,224.41,224.3,0.07]
[1757583034800,31.62915371,224.59,224.3,0.07]
[1757583034801,1.66438954,224.38,224.32,0.77565167]
[1757583034995,8.81438954,224.38,224.32,0.77565167]
[1757583035196,8.78464579,224.38,224.32,0.77565167]
[1757583035491,0.03195685,224.37,224.32,0.77565167]
[1757583036098,7.15,224.36,224.32,0.77565167]
[1757583036293,0.03195685,224.37,224.32,0.77565167]
[1757583036494,7.15,224.36,224.32,0.77565167]
[1757583036799,7.15,224.36,224.29,3.73910192]
[1757583037000,7.15,224.36,224.31,0.84570354]
[1757583037296,7.18195685,224.37,224.31,0.84570354]
[1757583037801,7.18195685,224.37,224.31,0.77570354]
[1757583038803,8.81660264,224.37,224.31,0.77570354]
[1757583039497,8.78464579,224.36,224.27,117.93910192]
[1757583039703,8.78464579,224.36,224.27,3.73910192]
[1757583039704,7.15,224.35,224.27,3.73910192]
[1757583039905,7.15,224.35,224.27,4.51490057]
[1757583043104,7.15,224.35,224.28,3.66910192]
[1757583043808,7.15,224.35,224.27,4.44490057]
[1757583044206,7.15,224.35,224.28,0.07]
[1757583045008,7.15,224.35,224.28,3.73910192]
[1757583045202,7.15,224.35,224.27,118.60490057]
[1757583045408,1.66660264,224.37,224.27,118.60490057]
[1757583045805,7.15,224.36,224.27,0.77579865]
[1757583046104,7.15,224.34,224.27,0.77579865]
[1757583051307,7.15,224.34,224.27,4.44490057]
[1757583052307,0.03195685,224.37,224.28,3.66910192]
[1757583052512,0.03195685,224.37,224.32,3.66910192]
[1757583052711,0.03195685,224.37,224.33,0.07]
[1757583052907,0.03195685,224.37,224.34,114.15]
[1757583053510,0.03195685,224.37,224.32,3.73910192]
[1757583053815,7.15,224.36,224.31,56.86]
[1757583054012,0.03195685,224.37,224.31,56.86]
[1757583054213,7.18195685,224.37,224.31,56.86]
[1757583055712,7.18195685,224.37,224.29,3.66910192]
[1757583055912,7.18195685,224.37,224.3,47.12]
[1757583056515,7.18195685,224.37,224.31,3.66910192]
[1757583057309,7.18195685,224.37,224.32,3.66910192]
[1757583057504,7.18195685,224.37,224.32,3.74910192]
[1757583057710,7.18195685,224.37,224.32,3.66910192]
[1757583057911,7.49,224.46,224.35,3.66910192]
[1757583058106,9.12464579,224.46,224.38,3.66910192]
[1757583058419,9.12464579,224.46,224.36,0.08]
[1757583058420,9.12464579,224.46,224.37,3.66910192]
[1757583058914,7.49,224.42,224.36,3.66910192]
[1757583059313,7.49,224.42,224.35,18.24]
[1757583059314,7.49,224.42,224.35,3.66910192]
[1757583059516,7.49,224.42,224.37,0.02902573]
[1757583059709,1.63464579,224.43,224.37,0.02902573]
[1757583059912,7.49,224.42,224.37,0.02902573]
[1757583060516,1.63464579,224.43,224.37,0.02902573]
[1757583060917,7.49,224.42,224.37,0.02902573]
[1757583061118,1.63464579,224.43,224.37,0.02902573]
[1757583061512,1.63464579,224.4,224.37,0.02902573]
[1757583061918,7.49,224.39,224.37,0.02902573]
[1757583062119,1.63464579,224.4,224.37,0.02902573]
[1757583062513,7.49,224.39,224.37,0.02902573]
[1757583063022,1.63464579,224.4,224.37,0.02902573]
[1757583063714,7.49,224.39,224.37,0.02902573]
[1757583064613,7.49,224.43,224.37,0.02902573]
[1757583064820,0.03136092,224.44,224.37,0.02902573]
[1757583064821,7.49,224.38,224.37,0.02902573]
[1757583065816,1.63464579,224.42,224.37,0.02902573]
[1757583066013,7.49,224.41,224.37,0.02902573]
[1757583066414,1.63464579,224.42,224.37,0.02902573]
[1757583067220,7.49,224.41,224.37,0.02902573]
[1757583067617,1.63464579,224.42,224.37,0.02902573]
[1757583068522,7.49,224.41,224.37,0.02902573]
[1757583068722,1.63464579,224.42,224.37,0.02902573]
[1757583069220,7.49,224.41,224.37,0.02902573]
[1757583069414,1.63464579,224.42,224.37,0.02902573]
[1757583069612,7.49,224.41,224.37,0.02902573]
[1757583069816,1.63464579,224.42,224.37,0.02902573]
[1757583070112,7.49,224.41,224.37,0.02902573]
[1757583070421,1.63464579,224.42,224.37,0.02902573]
[1757583070818,7.49,224.41,224.37,0.02902573]
[1757583072315,7.49,224.43,224.37,0.02902573]
[1757583072516,1.63464579,224.41,224.37,0.02902573]
[1757583073020,7.49,224.4,224.37,0.02902573]
[1757583075322,7.49,224.41,224.37,0.02902573]
[1757583075523,1.63464579,224.42,224.37,0.02902573]
[1757583075720,7.49,224.41,224.37,0.02902573]
[1757583075923,1.63464579,224.42,224.37,0.02902573]
[1757583076120,7.49,224.41,224.37,0.02902573]
[1757583076316,1.63464579,224.42,224.37,0.02902573]
[1757583076520,7.49,224.41,224.37,0.02902573]
[1757583076715,1.63464579,224.42,224.37,0.02902573]
[1757583077021,7.49,224.41,224.37,0.02902573]
[1757583077222,1.63464579,224.42,224.37,3.71541063]
[1757583077724,7.49,224.41,224.37,3.71541063]
[1757583078222,1.63464579,224.42,224.37,3.71541063]
[1757583079121,7.49,224.41,224.37,3.71541063]
[1757583079317,7.49,224.41,224.38,3.6863849]
[1757583079524,1.63464579,224.42,224.38,3.6863849]
[1757583079821,7.49,224.41,224.38,3.6863849]
[1757583080023,1.63464579,224.42,224.39,3.6863849]
[1757583080420,7.49,224.41,224.39,3.6863849]
[1757583081125,0.03136092,224.44,224.41,0.08]
[1757583081419,0.03136092,224.44,224.43,3.69879119]
[1757583082521,0.03136092,224.44,224.43,0.08]
[1757583082725,0.03136092,224.44,224.43,3.77879119]
[1757583082927,0.03136092,224.44,224.43,3.69879119]
[1757583083525,7.52136092,224.44,224.42,3.69879119]
[1757583083722,0.03136092,224.44,224.39,4.92876566]
[1757583083922,1.63464579,224.42,224.4,3.69592837]
[1757583084121,1.63464579,224.42,224.39,3.69592837]
[1757583084422,1.63464579,224.42,224.37,3.7249541]